bitfinex/quotes_SOLUSD_20240717
["timestamp","ask_amount","ask_price","bid_price","bid_amount"]
[1721236275342,16.6233,156.38,156.28,1.08149921]
[1721236275643,16.6233,156.38,156.27,6.6397]
[1721236275842,5.8870566,156.4,156.27,7.72393878]
[1721236276035,12.5267566,156.4,156.27,7.72393878]
[1721236277143,5.8870566,156.4,156.28,16.7803]
[1721236277353,5.8870566,156.4,156.29,1.08410004]
[1721236277667,7.96393036,156.41,156.3,1.08403067]
[1721236278023,15.952,156.42,156.28,48.4903]
[1721236278328,23.91593036,156.42,156.28,48.4903]
[1721236278539,55.45593036,156.42,156.28,48.1503]
[1721236278863,48.07940826,156.42,156.28,16.6103]
[1721236279140,7.74776613,156.41,156.28,16.6103]
[1721236281350,7.74776613,156.41,156.29,1.27914069]
[1721236281946,0.58740826,156.42,156.3,1.27914108]
[1721236282145,0.58740826,156.42,156.31,6.0934]
[1721236282447,0.58740826,156.42,156.32,1.27891926]
[1721236282646,53.9804,156.45,156.33,17.33835423]
[1721236283025,53.9804,156.45,156.33,16.0595]
[1721236283249,54.56780826,156.45,156.33,16.0595]
[1721236283451,7.74776613,156.44,156.33,16.0595]
[1721236284146,50.8,156.42,156.33,16.0595]
[1721236284351,31.54,156.39,156.31,6.0934]
[1721236284558,0.17,156.38,156.31,6.0934]
[1721236285535,16.3579,156.38,156.26,6.2145]
[1721236285745,31.54,156.36,156.26,6.2145]
[1721236285943,0.17,156.35,156.26,6.2145]
[1721236290267,31.71,156.35,156.26,6.2145]
[1721236290777,7.95761822,156.34,156.26,6.2145]
[1721236290982,0.17,156.33,156.26,6.2145]
[1721236291852,31.54,156.32,156.25,16.0595]
[1721236292067,0.17,156.31,156.25,16.0595]
[1721236294681,8.54502648,156.33,156.25,16.0595]
[1721236294980,0.58740826,156.33,156.25,16.0595]
[1721236296348,29.86951951,156.38,156.25,16.0595]
[1721236296349,7.37271951,156.38,156.27,6.5051]
[1721236296549,13.25977611,156.38,156.28,1.25750704]
[1721236297777,21.21739433,156.38,156.28,1.25750704]
[1721236297979,0.17,156.37,156.28,1.25750704]
[1721236299581,13.84467482,156.38,156.29,15.0517]
[1721236299766,13.84467482,156.38,156.3,1.27929146]
[1721236300763,432.09977611,156.43,156.31,6.4765]
[1721236300971,7.96393036,156.42,156.32,1.27913669]
[1721236301173,7.96393036,156.42,156.33,1.27912664]
[1721236301488,8.54652345,156.42,156.31,6.4765]
[1721236301664,31.54,156.4,156.31,6.4765]
[1721236301864,7.96393036,156.39,156.31,6.4765]
[1721236302062,0.17,156.38,156.31,6.4765]
[1721236303284,0.17,156.38,156.32,1.08077404]
[1721236303465,5.8870566,156.41,156.31,6.4765]
[1721236305590,0.17,156.4,156.31,6.4765]
[1721236306303,5.8870566,156.41,156.32,17.91123525]
[1721236306626,31.54,156.43,156.33,1.27894433]
[1721236308098,0.17,156.42,156.33,1.27894433]
[1721236308393,0.17,156.42,156.32,16.6321]
[1721236310074,0.17,156.42,156.33,1.27835543]
[1721236311505,6.3951,156.37,156.33,1.27835543]
[1721236312082,6.3947,156.38,156.33,7.67475543]
[1721236315211,6.395,156.37,156.33,7.67475543]
[1721236315517,6.3959,156.35,156.32,16.6321]
[1721236315890,15.9875,156.38,156.32,16.6321]
[1721236316089,6.3963,156.34,156.32,16.6321]
[1721236316292,6.3967,156.33,156.32,16.6321]
[1721236322300,6.3956,156.36,156.32,16.6321]
[1721236322493,6.3959,156.35,156.32,16.6321]
[1721236322692,6.3955,156.36,156.32,16.6321]
[1721236323194,6.3959,156.35,156.32,16.6321]
[1721236324227,6.3963,156.34,156.32,16.6321]
[1721236325794,6.396,156.35,156.32,16.6321]
[1721236326320,6.3963,156.34,156.32,16.6321]
[1721236326828,6.3967,156.33,156.32,16.6321]
[1721236328998,6.3964,156.34,156.32,17.91146427]
[1721236329396,6.3964,156.34,156.32,16.6321]
[1721236329696,6.3967,156.33,156.32,16.6321]
[1721236330493,15.9901,156.35,156.28,15.6335]
[1721236330706,6.3979,156.31,156.28,15.6335]
[1721236330924,6.3983,156.29,156.28,15.6335]
[1721236331135,31.54,156.35,156.24,15.2019]
[1721236331333,6.3992,156.27,156.24,15.2019]
[1721236331495,6.3988,156.28,156.24,21.6022]
[1721236331693,6.3988,156.28,156.24,15.2019]
[1721236332392,6.3992,156.27,156.24,15.2019]
[1721236333211,6.3988,156.28,156.24,15.2019]
[1721236333497,31.9833,156.34,156.24,31.2026]
[1721236333498,6.3984,156.29,156.24,31.2026]
[1721236333717,6.3987,156.28,156.24,31.2026]
[1721236333903,6.3984,156.29,156.24,37.6026]
[1721236334105,6.3987,156.28,156.24,37.6026]
[1721236334723,15.9933,156.32,156.24,31.2026]
[1721236334724,6.3993,156.27,156.24,31.2026]
[1721236335012,15.9933,156.32,156.24,21.6022]
[1721236335013,6.3988,156.28,156.24,21.6022]
[1721236335205,6.3988,156.28,156.24,15.2019]
[1721236335627,6.3988,156.28,156.24,21.6022]
[1721236336126,6.3992,156.27,156.24,15.2019]
[1721236336314,6.3997,156.26,156.24,15.2019]
[1721236336826,15.9976,156.28,156.23,6.2029]
[1721236337001,15.9976,156.28,156.2,32.1859]
[1721236337329,6.4016,156.21,156.2,16.1814]
[1721236337500,6.402,156.2,156.19,6.3849]
[1721236337704,6.4024,156.19,156.17,9.61265006]
[1721236338600,6.4024,156.19,156.17,9.61345637]
[1721236338807,6.4021,156.2,156.17,9.61345637]
[1721236339024,6.4017,156.21,156.18,9.61345637]
[1721236339603,15.9985,156.27,156.18,9.61345637]
[1721236339801,6.4007,156.24,156.19,6.402]
[1721236340018,6.4007,156.24,156.2,0.94068548]
[1721236340225,6.4009,156.23,156.19,9.61266726]
[1721236340428,6.4013,156.22,156.19,9.61266726]
[1721236340615,15.9985,156.27,156.19,9.61266726]
[1721236340817,6.4007,156.24,156.2,6.4019]
[1721236341014,6.4004,156.24,156.21,1.28008619]
[1721236342331,6.4008,156.23,156.19,25.61836726]
[1721236342932,6.4008,156.23,156.19,32.02076726]
[1721236343129,6.4005,156.24,156.19,32.02053968]
[1721236343433,6.4008,156.23,156.2,9.61243968]
[1721236344008,15.9985,156.27,156.2,9.61243968]
[1721236344234,6.402,156.2,156.19,9.61243968]
[1721236344610,5.902,156.2,156.19,9.61243968]
[1721236345923,6.4015,156.22,156.19,9.61243968]
[1721236346122,0.17,156.26,156.19,9.61287794]
[1721236346123,6.4016,156.21,156.19,9.61287794]
[1721236346326,6.402,156.2,156.19,9.61287794]
[1721236346645,6.402,156.2,156.16,16.1814]
[1721236346646,6.4027,156.19,156.16,16.1814]
[1721236346930,6.4021,156.2,156.16,16.1814]
[1721236347138,6.4021,156.2,156.19,9.61309677]
[1721236347511,16.1694,156.26,156.19,9.61309677]
[1721236347728,6.402,156.21,156.19,9.61304594]
[1721236347941,6.402,156.2,156.19,9.61304594]
[1721236348142,6.4017,156.21,156.19,9.61304594]
[1721236348754,6.402,156.2,156.19,9.61304594]
[1721236349249,6.4032,156.17,156.16,16.1814]
[1721236350021,6.4032,156.17,156.15,6.3849]
[1721236350224,6.4036,156.16,156.12,38.2216]
[1721236350450,6.4048,156.14,156.12,15.8038]
[1721236350748,6.404,156.16,156.12,15.8038]
[1721236350949,16.0077,156.18,156.12,15.8038]
[1721236351131,6.4046,156.14,156.12,15.8038]
[1721236351328,6.4049,156.13,156.12,15.8038]
[1721236351543,6.4045,156.14,156.12,15.8038]
[1721236352061,6.4042,156.15,156.12,15.8038]
[1721236352351,6.4047,156.14,156.12,15.8038]
[1721236352527,6.4041,156.15,156.12,15.8038]
[1721236352848,48.0136,156.21,156.12,17.08205479]
[1721236353048,6.4039,156.16,156.12,15.8038]
[1721236353431,6.4041,156.15,156.12,15.8038]
[1721236353639,16.0065,156.19,156.12,15.8038]
[1721236353839,0.17,156.18,156.12,15.8038]
[1721236354135,6.4049,156.13,156.12,15.8038]
[1721236354336,0.17,156.18,156.12,15.8038]
[1721236355046,16.0085,156.17,156.08,22.0139]
[1721236355231,6.4049,156.13,156.09,6.4065]
[1721236355625,6.4049,156.13,156.1,0.91103988]
[1721236355933,6.4042,156.15,156.11,1.28102547]
[1721236356634,6.4037,156.16,156.12,6.405]
[1721236356831,6.4037,156.16,156.11,1.28102547]
[1721236356832,6.4037,156.16,156.11,7.68662547]
[1721236357241,39.36851549,156.2,156.12,6.4052]
[1721236357242,6.4032,156.17,156.12,6.4052]
[1721236357448,6.4038,156.16,156.11,6.4056]
[1721236357645,6.4038,156.16,156.12,0.32527022]
[1721236357832,23.58301549,156.2,156.13,6.4048]
[1721236358032,6.4034,156.17,156.13,6.4048]
[1721236358267,6.4038,156.16,156.12,16.0126]
[1721236358759,16.0023,156.23,156.13,22.1805]
[1721236358931,6.4021,156.2,156.16,6.4036]
[1721236359132,6.4021,156.2,156.17,1.04713915]
[1721236359333,6.4017,156.21,156.18,1.04707212]
[1721236360234,6.4008,156.23,156.19,16.3984]
[1721236360429,6.4008,156.23,156.2,1.24037123]
[1721236360665,6.4008,156.23,156.21,1.24029182]
[1721236361348,15.9995,156.26,156.19,16.3984]
[1721236362147,6.4015,156.22,156.19,16.3984]
[1721236362458,15.9995,156.26,156.19,16.3984]
[1721236362756,6.402,156.2,156.19,16.3984]
[1721236363130,6.4017,156.21,156.19,16.3984]
[1721236363960,6.4012,156.22,156.19,16.3984]
[1721236364173,45.0,156.25,156.19,22.8006]
[1721236364463,6.4005,156.24,156.2,1.17599387]
[1721236364664,6.4005,156.24,156.21,1.28009441]
[1721236364839,45.0,156.25,156.19,16.3984]
[1721236365041,6.4009,156.23,156.19,16.3984]
[1721236365340,6.401,156.23,156.19,16.3984]
[1721236365548,6.4004,156.24,156.19,22.8006]
[1721236367467,6.4008,156.23,156.19,22.8006]
[1721236368266,6.402,156.2,156.19,16.3984]
[1721236368644,6.4016,156.21,156.19,16.3984]
[1721236369049,6.402,156.2,156.19,16.3984]
[1721236369542,6.4028,156.18,156.15,15.6698]
[1721236369950,6.4034,156.17,156.15,15.6698]
[1721236370265,6.4036,156.16,156.15,15.6698]
[1721236370570,6.4033,156.17,156.15,15.6698]
[1721236371067,6.4021,156.2,156.15,22.0737]
[1721236371247,6.4021,156.2,156.16,1.28040647]
[1721236371451,6.4021,156.2,156.16,7.68400647]
[1721236371833,6.4017,156.21,156.16,7.68400647]
[1721236372040,6.4017,156.21,156.17,6.403]
[1721236372354,6.4021,156.2,156.16,6.4035]
[1721236372741,6.4021,156.2,156.15,38.0835]
[1721236372961,6.4013,156.22,156.17,6.4029]
[1721236373148,6.4016,156.21,156.17,6.4032]
[1721236373348,6.4013,156.22,156.18,7.68309882]
[1721236373555,6.4008,156.23,156.18,7.68309882]
[1721236373769,6.4012,156.22,156.18,6.4028]
[1721236374148,6.4009,156.23,156.18,6.4028]
[1721236375064,6.3991,156.27,156.21,16.0035]
[1721236375261,6.3991,156.27,156.22,1.27919727]
[1721236375446,6.3996,156.26,156.22,6.4011]
[1721236375638,6.3992,156.27,156.23,6.4007]
[1721236375850,6.3992,156.27,156.24,1.27976201]
[1721236376246,15.9939,156.31,156.21,22.405]
[1721236376455,6.3994,156.27,156.22,1.27983353]
[1721236377060,6.3994,156.27,156.21,16.0035]
[1721236377571,6.3988,156.28,156.22,1.27976081]
[1721236377865,6.3992,156.27,156.23,6.4007]
[1721236378075,6.3996,156.26,156.22,6.4011]
[1721236378367,6.3992,156.27,156.23,6.4006]
[1721236378567,6.3997,156.26,156.22,6.4011]
[1721236378751,6.4001,156.25,156.22,1.27989203]
[1721236378947,6.4005,156.24,156.22,1.27989203]
[1721236379477,15.9962,156.29,156.2,1.2799939]
[1721236379650,0.17,156.28,156.21,1.28004218]
[1721236379841,6.4012,156.22,156.21,1.28004218]
[1721236380453,6.4017,156.21,156.19,6.3312]
[1721236380677,16.0003,156.25,156.18,16.1656]
[1721236381046,16.0003,156.25,156.15,6.2446]
[1721236381351,6.403,156.18,156.15,6.2446]
[1721236382238,6.4025,156.19,156.15,6.2446]
[1721236383268,16.0025,156.23,156.15,6.2446]
[1721236383474,6.4031,156.18,156.15,6.2446]
[1721236383772,6.4025,156.19,156.15,6.2446]
[1721236383976,16.0025,156.23,156.15,6.2446]
[1721236384275,16.0025,156.23,156.15,12.6485]
[1721236384442,6.4025,156.19,156.15,6.2446]
[1721236385164,6.4025,156.19,156.15,12.6485]
[1721236385874,6.4029,156.18,156.15,6.2446]
[1721236386055,6.4033,156.17,156.15,6.2446]
[1721236386687,6.4028,156.19,156.15,6.2446]
[1721236386852,6.4021,156.2,156.15,6.8036099]
[1721236387050,6.4021,156.2,156.16,1.28042837]
[1721236387449,6.4024,156.19,156.15,12.6486]
[1721236387953,6.4024,156.19,156.15,13.92667463]
[1721236388772,6.4026,156.19,156.15,12.6486]
[1721236389374,16.0025,156.23,156.15,12.6486]
[1721236389375,6.4021,156.2,156.15,12.6486]
[1721236389576,6.4024,156.19,156.15,12.6486]
[1721236389782,15.9995,156.26,156.17,6.4032]
[1721236389956,6.4013,156.22,156.18,7.68288826]
[1721236390165,6.4007,156.24,156.19,6.4024]
[1721236390471,6.4009,156.23,156.2,1.2800752]
[1721236390648,6.4012,156.22,156.21,1.28009603]
[1721236391063,16.0013,156.24,156.17,1.28009603]
[1721236391280,16.0013,156.24,156.18,1.28001406]
[1721236391582,6.4012,156.22,156.18,7.68261406]
[1721236391745,6.4012,156.22,156.18,6.4026]
[1721236392075,16.0003,156.25,156.16,16.0087]
[1721236392372,16.0003,156.25,156.17,0.46849074]
[1721236392575,16.0003,156.25,156.18,0.46846074]
[1721236392781,6.4009,156.23,156.19,1.28008662]
[1721236392989,31.2167,156.28,156.19,1.28008662]
[1721236393173,45.0,156.27,156.19,1.28008662]
[1721236393378,6.401,156.23,156.19,7.68238662]
[1721236394068,6.4013,156.22,156.18,22.4092]
[1721236394464,6.4009,156.23,156.19,6.4023]
[1721236394980,6.4009,156.23,156.18,22.4093]
[1721236395290,6.4015,156.22,156.18,16.0065]
[1721236395668,15.2197,156.28,156.15,22.2542]
[1721236395669,16.0024,156.23,156.15,22.2542]
[1721236395870,6.4024,156.19,156.16,1.27906532]
[1721236396090,16.0044,156.21,156.16,1.27906532]
[1721236396269,6.403,156.18,156.16,1.27906532]
[1721236396468,6.4025,156.19,156.16,1.27906532]
[1721236396705,16.0017,156.24,156.16,1.27906532]
[1721236396859,6.403,156.18,156.16,1.27906532]
[1721236397058,6.403,156.18,156.15,22.2541]
[1721236397603,63.7102,156.25,156.15,6.2446]
[1721236397766,16.0079,156.18,156.11,6.4379]
[1721236397967,6.4049,156.13,156.11,6.4379]
[1721236398179,16.0097,156.16,156.11,6.4379]
[1721236398669,6.4044,156.15,156.11,6.4379]
[1721236398868,6.4039,156.16,156.11,12.8432]
[1721236399275,6.4039,156.16,156.12,6.4052]
[1721236399684,16.1111,156.21,156.12,6.4052]
[1721236399892,16.1111,156.21,156.11,6.4379]
[1721236399893,6.4039,156.16,156.11,12.8435]
[1721236400082,6.4033,156.17,156.12,6.4051]
[1721236400388,16.0056,156.2,156.13,1.28065952]
[1721236400993,31.54,156.22,156.14,1.28065039]
[1721236401297,6.4045,156.14,156.11,6.4379]
[1721236401466,6.4053,156.12,156.11,16.05551647]
[1721236401662,6.4053,156.12,156.11,6.4379]
[1721236401893,6.405,156.13,156.11,6.4379]
[1721236402190,6.4045,156.14,156.11,6.4379]
[1721236402488,6.4049,156.13,156.11,6.4379]
[1721236402680,6.4042,156.15,156.12,1.28087132]
[1721236402884,6.4048,156.14,156.12,1.28087132]
[1721236403084,6.405,156.13,156.11,16.05578159]
[1721236403402,6.405,156.13,156.11,16.05591606]
[1721236403572,6.4045,156.14,156.11,16.05591606]
[1721236403899,16.0076,156.18,156.11,9.61801606]
[1721236404071,16.0076,156.18,156.11,10.89888114]
[1721236404366,6.4046,156.14,156.11,10.89888114]
[1721236404574,6.4042,156.15,156.11,10.89888114]
[1721236404774,6.4046,156.14,156.11,9.61801606]
[1721236404996,6.4049,156.13,156.11,9.61801606]
[1721236405174,6.4044,156.15,156.11,10.89892443]
[1721236405376,6.4046,156.14,156.11,10.89892443]
[1721236405891,387.3,156.32,156.11,10.89892443]
[1721236406093,16.0043,156.21,156.12,6.4053]
[1721236406295,6.4037,156.16,156.13,1.28074568]
[1721236406870,6.4033,156.17,156.13,1.28074568]
[1721236407181,6.4033,156.17,156.12,16.02275056]
[1721236407499,6.4036,156.17,156.13,1.28062413]
[1721236408006,6.4029,156.18,156.13,7.68542413]
[1721236408203,16.0043,156.21,156.12,25.63035056]
[1721236408394,6.4043,156.15,156.13,1.28069865]
[1721236408705,16.0068,156.19,156.13,1.28069865]
[1721236409107,6.4041,156.15,156.12,9.61765056]
[1721236409409,6.4045,156.14,156.13,1.28074439]
[1721236409583,6.4041,156.15,156.13,1.28074439]
[1721236409789,32.0106,156.2,156.13,1.28074439]
[1721236409790,6.4037,156.16,156.13,1.28074439]
[1721236410189,6.4041,156.15,156.13,1.28074439]
[1721236410379,16.0056,156.2,156.12,9.61764951]
[1721236410380,6.4045,156.14,156.12,9.61764951]
[1721236410891,6.4045,156.14,156.11,9.61802673]
[1721236411098,16.0079,156.18,156.11,10.89885917]
[1721236411405,6.4045,156.14,156.11,10.89885917]
[1721236411603,6.4045,156.14,156.11,9.61802673]
[1721236412296,6.4045,156.14,156.11,9.61803673]
[1721236412502,6.405,156.13,156.11,9.61803673]
[1721236413310,16.0079,156.18,156.12,1.28090112]
[1721236413482,6.4045,156.14,156.11,9.61803673]
[1721236413812,6.4045,156.14,156.12,1.2808832]
[1721236414010,16.0079,156.18,156.12,1.2808832]
[1721236414230,6.4043,156.15,156.12,1.2808832]
[1721236414386,6.4043,156.15,156.11,9.61803673]
[1721236414894,6.4043,156.15,156.12,1.28081457]
[1721236415394,0.17,156.19,156.12,7.68611457]
[1721236415606,6.404,156.16,156.12,1.28081457]
[1721236415813,6.404,156.16,156.12,7.68611457]
[1721236416120,6.404,156.16,156.12,17.30413867]
[1721236416491,6.404,156.16,156.12,10.89883867]
[1721236416691,6.404,156.16,156.12,17.30403867]
[1721236416898,6.404,156.16,156.12,10.89883867]
[1721236417191,6.4028,156.19,156.12,26.91163867]
[1721236417392,6.4029,156.18,156.14,6.4044]
[1721236417608,6.4029,156.18,156.13,6.4048]
[1721236417811,6.4029,156.18,156.12,25.6308241]
[1721236417812,6.4029,156.18,156.15,1.28054181]
[1721236418388,55.11891549,156.24,156.15,1.28054181]
[1721236418915,6.4027,156.19,156.15,1.28054181]
[1721236419103,6.4021,156.2,156.15,7.68444181]
[1721236419303,6.4021,156.2,156.16,6.4036]
[1721236419626,16.0016,156.24,156.17,1.28029953]
[1721236419791,6.4016,156.21,156.18,16.4473776]
[1721236420003,6.4012,156.22,156.18,16.4473776]
[1721236420616,23.57581549,156.27,156.18,16.4473776]
[1721236420805,23.57581549,156.27,156.18,51.6840776]
[1721236421009,6.4007,156.24,156.19,6.4024]
[1721236421305,6.4007,156.24,156.2,1.28000154]
[1721236421501,6.4001,156.25,156.21,1.27999232]
[1721236421704,6.4005,156.24,156.2,6.4019]
[1721236421903,6.4005,156.24,156.21,1.27999513]
[1721236422310,305.9406,156.3,156.21,7.68139513]
[1721236422311,6.4,156.25,156.21,7.68139513]
[1721236422724,6.3991,156.27,156.22,16.0026]
[1721236422917,6.3991,156.27,156.23,1.27971015]
[1721236423215,6.3991,156.27,156.24,1.27962824]
[1721236423420,6.3991,156.27,156.22,35.2326]
[1721236424395,6.3997,156.26,156.22,35.2326]
[1721236424596,6.3992,156.27,156.22,41.6335]
[1721236424804,6.3992,156.27,156.22,25.6309]
[1721236425495,5.3992,156.27,156.22,25.6309]
[1721236425694,5.3992,156.27,156.22,41.6335]
[1721236426923,6.3996,156.26,156.22,41.6335]
[1721236427904,6.4001,156.25,156.21,6.4015]
[1721236428105,6.3996,156.26,156.21,7.68135791]
[1721236428304,6.4,156.25,156.21,6.4015]
[1721236428604,6.3996,156.26,156.22,6.401]
[1721236428803,6.3995,156.27,156.22,6.4011]
[1721236430025,15.9955,156.3,156.21,22.4051]
[1721236430226,6.3997,156.26,156.22,6.4011]
[1721236430610,6.4,156.25,156.21,22.4051]
[1721236430916,6.3996,156.26,156.21,22.4051]
[1721236431116,6.3996,156.26,156.22,6.4011]
[1721236431704,15.9955,156.3,156.22,1.27983462]
[1721236431901,6.3993,156.27,156.23,6.4007]
[1721236432133,6.4,156.25,156.21,22.4049]
[1721236432432,6.3997,156.26,156.21,22.4049]
[1721236433129,15.9979,156.27,156.2,6.2202]
[1721236433423,6.4005,156.24,156.2,6.2202]
[1721236433809,6.4005,156.24,156.2,12.6221]
[1721236434265,15.9955,156.3,156.21,6.4015]
[1721236434414,6.4002,156.25,156.21,6.4015]
[1721236434938,6.3996,156.26,156.22,6.4012]
[1721236435142,6.3995,156.27,156.23,6.4006]
[1721236435628,6.3995,156.27,156.22,6.4011]
[1721236435934,6.3995,156.26,156.21,22.405]
[1721236436435,6.3993,156.27,156.22,6.4012]
[1721236437312,6.3996,156.26,156.22,6.4012]
[1721236437516,6.4001,156.25,156.21,22.405]
[1721236437715,6.3997,156.26,156.21,22.405]
[1721236438232,6.3997,156.26,156.22,6.4011]
[1721236438431,6.4,156.25,156.21,22.405]
[1721236439227,6.3997,156.26,156.21,22.405]
[1721236439640,6.3997,156.26,156.21,16.0035]
[1721236439813,6.3997,156.26,156.22,6.7218517]
[1721236440014,6.3997,156.26,156.22,6.4012]
[1721236440214,6.3992,156.27,156.23,22.1506]
[1721236440431,15.75,156.24,156.2,6.2202]
[1721236440620,22.1504,156.24,156.2,6.2202]
[1721236440824,22.151,156.23,156.2,6.2202]
[1721236441142,15.75,156.23,156.2,6.2202]
[1721236441440,6.4014,156.22,156.19,15.75]
[1721236443046,6.4008,156.23,156.19,22.1524]
[1721236443350,6.4008,156.23,156.2,15.75]
[1721236443718,6.4008,156.23,156.19,15.75]
[1721236444038,6.4012,156.22,156.19,15.75]
[1721236444246,15.75,156.24,156.19,15.75]
[1721236444543,6.4012,156.22,156.19,1.28023781]
[1721236444732,15.75,156.26,156.21,15.75]
[1721236444920,6.4012,156.22,156.2,15.75]
[1721236445121,6.4012,156.22,156.19,15.75]
[1721236445317,15.75,156.24,156.19,15.75]
[1721236445568,6.4032,156.17,156.16,6.5526]
[1721236445739,15.75,156.2,156.16,6.5526]
[1721236446164,6.4027,156.19,156.15,15.75]
[1721236446864,15.75,156.2,156.15,15.75]
[1721236447165,6.4029,156.18,156.15,15.75]
[1721236448042,6.4033,156.17,156.14,31.0762]
[1721236448243,6.4037,156.16,156.14,15.3262]
[1721236448860,6.4033,156.17,156.14,15.3262]
[1721236449377,6.4038,156.16,156.12,6.666]
[1721236449672,6.4044,156.15,156.1,48.65858173]
[1721236449871,6.405,156.13,156.1,26.23768173]
[1721236450252,32.0111,156.2,156.1,26.23768173]
[1721236450253,6.4057,156.11,156.1,9.61798173]
[1721236450454,31.54,156.18,156.09,9.61798173]
[1721236450652,6.4054,156.12,156.1,10.8991083]
[1721236450956,6.4049,156.13,156.1,9.61798173]
[1721236451157,6.4053,156.12,156.1,9.61798173]
[1721236451343,6.4049,156.14,156.08,6.4068]
[1721236451540,6.4052,156.13,156.08,6.4068]
[1721236451735,6.4052,156.13,156.08,7.68777835]
[1721236451942,16.1787,156.17,156.08,7.68777835]
[1721236452250,6.405,156.13,156.08,1.28097835]
[1721236452454,6.405,156.13,156.08,7.68777835]
[1721236452655,6.4053,156.12,156.08,1.28097835]
[1721236452839,6.4057,156.11,156.08,1.28097835]
[1721236453040,6.4053,156.12,156.06,51.8682]
[1721236453242,6.4053,156.12,156.07,0.17]
[1721236453664,6.4053,156.12,156.07,6.5773]
[1721236453870,6.4053,156.12,156.08,6.4069]
[1721236454042,6.4053,156.12,156.09,0.64537456]
[1721236454473,6.4053,156.12,156.07,6.5772]
[1721236454644,6.4058,156.11,156.07,6.4072]
[1721236454844,6.4061,156.1,156.06,58.2758]
[1721236455043,6.4061,156.1,156.07,1.28105779]
[1721236455243,6.4061,156.1,156.08,1.28105325]
[1721236455550,16.0134,156.12,156.06,16.6197]
[1721236455745,6.4073,156.07,156.04,6.5651]
[1721236455953,6.4085,156.05,156.02,16.0629]
[1721236456260,6.4078,156.06,156.03,2.07933519]
[1721236456958,6.4083,156.05,156.03,2.07933519]
[1721236457466,6.4083,156.05,156.03,0.7978739]
[1721236457661,6.4083,156.05,156.03,2.07937131]
[1721236457862,6.4078,156.06,156.03,2.07937131]
[1721236458253,6.4082,156.05,156.03,2.07937131]
[1721236458847,6.4086,156.04,156.03,2.07937131]
[1721236459055,37.9486,156.04,156.03,0.7978739]
[1721236459289,6.4086,156.04,156.03,0.7978739]
[1721236461260,30.77360278,156.1,156.03,0.7978739]
[1721236461261,16.0162,156.1,156.03,0.7978739]
[1721236461567,6.4082,156.05,156.03,0.7978739]
[1721236461767,21.3164,156.12,156.03,0.7978739]
[1721236461986,6.4086,156.04,156.03,0.7978739]
[1721236462768,51.4086,156.04,156.03,0.7978739]
[1721236462979,73.8221,156.04,156.03,0.7978739]
[1721236463676,51.4086,156.04,156.03,0.7978739]
[1721236463890,6.4082,156.05,156.03,0.7978739]
[1721236464181,6.4077,156.07,156.03,0.7978739]
[1721236464390,31.54,156.11,156.03,0.7978739]
[1721236464685,16.69955954,156.12,156.03,0.7978739]
[1721236464978,6.4082,156.05,156.03,0.7978739]
[1721236465456,6.4078,156.06,156.03,0.7978739]
[1721236465656,6.4073,156.07,156.04,1.27898267]
[1721236465862,37.7465,156.13,156.05,1.27890071]
[1721236466061,6.4066,156.09,156.04,0.48100249]
[1721236466280,6.4071,156.08,156.04,1.28131998]
[1721236466582,6.4065,156.1,156.05,1.2790912]
[1721236466785,16.0152,156.11,156.05,1.2790912]
[1721236466996,6.4078,156.06,156.03,0.7978739]
[1721236467286,6.4074,156.07,156.04,1.28146644]
[1721236467582,16.0152,156.11,156.03,0.7978739]
[1721236467788,6.4082,156.05,156.03,0.7978739]
[1721236468279,6.4086,156.04,156.03,0.7978739]
[1721236469478,51.4086,156.04,156.03,0.7978739]
[1721236473788,6.4086,156.04,156.03,0.7978739]
[1721236475078,51.4086,156.04,156.03,0.7978739]